bitfinex/quotes_BTCUSD_20250109
["timestamp","ask_amount","ask_price","bid_price","bid_amount"]
[1736428043191,0.0014989,93450.0,93449.0,0.24327976]
[1736428043600,0.0014989,93450.0,93449.0,0.23559976]
[1736428043808,0.0014989,93450.0,93449.0,0.34577824]
[1736428044216,0.0014989,93450.0,93449.0,0.24327976]
[1736428047760,0.0014989,93450.0,93449.0,0.34327976]
[1736428048377,0.0014989,93450.0,93449.0,0.36627976]
[1736428048590,0.0014989,93450.0,93449.0,0.46327976]
[1736428048791,0.0014989,93450.0,93449.0,0.46827976]
[1736428048965,0.0014989,93450.0,93449.0,0.57257952]
[1736428049165,0.0024989,93450.0,93449.0,0.57657952]
[1736428049400,0.0024989,93450.0,93449.0,0.47657952]
[1736428049615,0.0024989,93450.0,93449.0,0.37227976]
[1736428050420,0.0024989,93450.0,93449.0,0.34927976]
[1736428050633,0.0024989,93450.0,93449.0,0.24927976]
[1736428068913,0.0004989,93450.0,93449.0,0.24027976]
[1736428069305,0.0014989,93450.0,93449.0,0.24927976]
[1736428069481,0.0014989,93450.0,93449.0,0.35357952]
[1736428069742,0.0004989,93450.0,93449.0,0.34957952]
[1736428069943,0.0014989,93450.0,93449.0,0.35357952]
[1736428070148,0.0014989,93450.0,93449.0,0.35361952]
[1736428070759,0.0014989,93450.0,93449.0,0.34861952]
[1736428071061,0.0024989,93450.0,93449.0,0.35461952]
[1736428072358,0.0024989,93450.0,93449.0,0.34689952]
[1736428072571,0.0024989,93450.0,93449.0,0.35461952]
[1736428073247,0.0024989,93450.0,93449.0,0.37761952]
[1736428073442,0.0024989,93450.0,93449.0,0.61107383]
[1736428078236,0.0024989,93450.0,93449.0,0.51107383]
[1736428078457,0.0024989,93450.0,93449.0,0.61107383]
[1736428079375,0.0024989,93450.0,93449.0,0.76107383]
[1736428091717,0.0024989,93450.0,93449.0,1.18758975]
[1736428091924,0.0024989,93450.0,93449.0,1.17986975]
[1736428092165,0.0024989,93450.0,93449.0,1.18758975]
[1736428094179,0.0024989,93450.0,93449.0,0.70256999]
[1736428094391,0.0024989,93450.0,93449.0,0.11429976]
[1736428094751,0.0818989,93450.0,93449.0,0.12201976]
[1736428095160,0.2308989,93450.0,93449.0,0.006]
[1736428095382,0.2308989,93450.0,93449.0,0.01372]
[1736428095383,0.28128201,93450.0,93449.0,0.01372]
[1736428095574,0.28128201,93450.0,93449.0,0.01872]
[1736428095789,0.28028201,93450.0,93449.0,0.00772]
[1736428096001,0.28028201,93450.0,93449.0,0.00872]
[1736428096210,0.28028201,93450.0,93449.0,0.00972]
[1736428096414,0.28028201,93450.0,93449.0,0.00872]
[1736428096636,0.28028201,93450.0,93449.0,0.00772]
[1736428096840,0.28228201,93450.0,93449.0,0.00772]
[1736428097058,0.28028201,93450.0,93449.0,0.00772]
[1736428098485,0.28528201,93450.0,93449.0,0.00772]
[1736428098855,0.28028201,93450.0,93449.0,0.00772]
[1736428099054,0.28228201,93450.0,93449.0,0.00772]
[1736428099499,0.28028201,93450.0,93449.0,0.00772]
[1736428099855,0.28428201,93450.0,93449.0,0.00772]
[1736428102064,0.28028201,93450.0,93449.0,0.00772]
[1736428102281,0.28428201,93450.0,93449.0,0.00772]
[1736428102643,0.28028201,93450.0,93449.0,0.00772]
[1736428103049,0.28028201,93450.0,93426.0,0.15004]
[1736428103050,0.15,93448.0,93426.0,0.15004]
[1736428103255,0.15,93448.0,93427.0,0.11201976]
[1736428103464,0.428129,93430.0,93427.0,0.10429976]
[1736428103682,0.511229,93430.0,93428.0,0.00772]
[1736428103889,0.511229,93430.0,93428.0,0.11201976]
[1736428104087,0.214064,93430.0,93428.0,0.11201976]
[1736428104938,0.0428119,93429.0,93428.0,0.11201976]
[1736428105706,0.214064,93430.0,93428.0,0.11201976]
[1736428106333,0.214064,93430.0,93428.0,0.11301976]
[1736428106587,0.214064,93430.0,93428.0,0.11401976]
[1736428106714,0.214064,93430.0,93428.0,0.11301976]
[1736428108454,0.22492297,93430.0,93428.0,0.11301976]
[1736428108630,0.0653031,93429.0,93428.0,0.11301976]
[1736428109455,0.0653031,93429.0,93428.0,0.11201976]
[1736428109865,0.0653031,93429.0,93428.0,0.11401976]
[1736428110294,0.0653031,93429.0,93428.0,0.11301976]
[1736428110629,0.0653031,93429.0,93428.0,0.11501976]
[1736428111055,0.22492297,93430.0,93428.0,0.11501976]
[1736428111870,0.1969,93429.0,93428.0,0.003]
[1736428112092,0.27855042,93429.0,93428.0,0.002]
[1736428112293,0.15,93427.0,93425.0,0.00772]
[1736428112697,0.2141,93414.0,93413.0,0.0001706]
[1736428112896,0.2141,93414.0,93413.0,0.0078906]
[1736428113439,0.256919,93414.0,93413.0,0.0001706]
[1736428113595,0.406919,93414.0,93413.0,0.0078906]
[1736428113773,0.485919,93414.0,93413.0,0.0078906]
[1736428113981,0.48598839,93414.0,93413.0,0.0078906]
[1736428114180,0.48598839,93414.0,93413.0,0.0088906]
[1736428115002,0.53734488,93414.0,93413.0,0.0088906]
[1736428115626,0.53734488,93414.0,93413.0,0.0001706]
[1736428115851,0.53734488,93414.0,93413.0,0.0011706]
[1736428116058,0.53834488,93414.0,93413.0,0.0011706]
[1736428116269,0.53834488,93414.0,93413.0,0.0001706]
[1736428116510,0.54334488,93414.0,93413.0,0.0011706]
[1736428116911,0.54434488,93414.0,93413.0,0.0011706]
[1736428117294,0.55536986,93414.0,93413.0,0.0011706]
[1736428119112,0.31127411,93414.0,93413.0,0.0011706]
[1736428119254,0.52537411,93414.0,93413.0,0.0011706]
[1736428120579,0.51255086,93414.0,93413.0,0.0011706]
[1736428120738,0.52027086,93414.0,93413.0,0.0011706]
[1736428124501,0.39317086,93414.0,93413.0,0.0011706]
[1736428128236,0.00772,93414.0,93413.0,0.0011706]
[1736428128686,0.22182,93414.0,93413.0,0.0011706]
[1736428128898,0.00772,93414.0,93413.0,0.10547036]
[1736428129095,0.01085908,93414.0,93413.0,0.10547036]
[1736428129472,0.21409,93419.0,93413.0,0.10547036]
[1736428129671,0.21409,93419.0,93414.0,0.10429976]
[1736428129873,0.214097,93416.0,93414.0,0.10429976]
[1736428130906,0.214097,93416.0,93415.0,0.0763]
[1736428131115,0.0536962,93424.0,93415.0,0.18059976]
[1736428131348,0.0108042,93424.0,93416.0,0.10429976]
[1736428131584,0.21408,93423.0,93416.0,0.10429976]
[1736428131765,0.214052,93436.0,93418.0,0.0475]
[1736428131978,0.214066,93429.0,93419.0,0.10429976]
[1736428132196,0.214075,93426.0,93419.0,0.10429976]
[1736428133407,0.214057,93433.0,93420.0,0.0829]
[1736428133621,0.001,93426.0,93421.0,0.10429976]
[1736428134034,0.001,93426.0,93422.0,0.0829]
[1736428134234,0.001,93426.0,93423.0,0.10429976]
[1736428134439,0.042884,93441.0,93423.0,0.10429976]
[1736428134646,0.214077,93425.0,93423.0,0.10429976]
[1736428134869,0.21407,93428.0,93423.0,0.10429976]
[1736428135064,0.214077,93424.0,93423.0,0.10429976]
[1736428135683,0.21407,93428.0,93423.0,0.10429976]
[1736428136086,0.214065,93430.0,93423.0,0.10429976]
[1736428136087,0.002,93426.0,93423.0,0.10429976]
[1736428136499,0.214058,93433.0,93423.0,0.10429976]
[1736428136702,0.214058,93433.0,93423.0,0.10929976]
[1736428137221,0.214066,93429.0,93423.0,0.10429976]
[1736428137428,0.214066,93429.0,93423.0,0.10929976]
[1736428137804,0.214066,93429.0,93423.0,0.10429976]
[1736428138005,0.214066,93429.0,93423.0,0.10729976]
[1736428139020,0.214066,93429.0,93423.0,0.11029976]
[1736428139419,0.214066,93429.0,93423.0,0.10729976]
[1736428139587,0.214066,93429.0,93423.0,0.10429976]
[1736428139793,0.214066,93429.0,93423.0,0.10729976]
[1736428140074,0.214066,93429.0,93423.0,0.10929976]
[1736428141458,0.214059,93432.0,93423.0,0.10929976]
[1736428141687,0.214068,93429.0,93423.0,0.10929976]
[1736428142090,0.214077,93425.0,93423.0,0.10929976]
[1736428142301,0.0214077,93424.0,93423.0,0.005]
[1736428142516,0.214077,93425.0,93423.0,0.0076]
[1736428142745,0.01104907,93437.0,93415.0,0.0826]
[1736428142958,0.214077,93424.0,93423.0,0.002]
[1736428143176,0.214077,93424.0,93423.0,0.004]
[1736428143386,0.214077,93424.0,93423.0,0.002]
[1736428143595,0.214077,93424.0,93423.0,0.005]
[1736428143997,0.214077,93424.0,93423.0,0.002]
[1736428144217,0.2578921,93424.0,93423.0,0.0076]
[1736428145048,0.2141,93414.0,93413.0,0.00032079]
[1736428145446,0.2141,93414.0,93413.0,0.00792079]
[1736428146599,0.2141,93414.0,93413.0,0.00992079]
[1736428147482,0.21409,93419.0,93413.0,0.11422055]
[1736428147689,0.21409,93419.0,93414.0,0.10429976]
[1736428148308,0.21399688,93419.0,93414.0,0.10429976]
[1736428148730,0.214098,93416.0,93414.0,0.10429976]
[1736428148936,0.428196,93416.0,93413.0,0.01092079]
[1736428149157,0.428196,93416.0,93413.0,0.00792079]
[1736428149358,0.428196,93416.0,93413.0,0.00892079]
[1736428149562,0.428196,93416.0,93414.0,0.001]
[1736428149769,0.428196,93416.0,93413.0,0.00792079]
[1736428150186,0.428196,93416.0,93414.0,0.001]
[1736428150999,0.428196,93416.0,93413.0,0.00892079]
[1736428152460,0.428196,93416.0,93414.0,0.001]
[1736428152656,0.214098,93416.0,93415.0,0.0076]
[1736428153932,0.214098,93416.0,93415.0,0.0086]
[1736428154147,0.01067563,93424.0,93415.0,0.0086]
[1736428154148,0.214082,93422.0,93415.0,0.11289976]
[1736428154360,0.214082,93422.0,93416.0,0.10429976]
[1736428155448,0.01067563,93424.0,93416.0,0.10429976]
[1736428155612,0.01067563,93424.0,93417.0,0.343493]
[1736428155821,0.214074,93426.0,93417.0,0.343493]
[1736428155822,0.002,93422.0,93418.0,0.17128934]
[1736428156040,0.214074,93426.0,93418.0,0.17128934]
[1736428156254,0.214069,93428.0,93418.0,0.17128934]
[1736428156395,0.002,93422.0,93418.0,0.38537934]
[1736428156603,0.214069,93428.0,93418.0,0.38537934]
[1736428156820,0.22503081,93428.0,93418.0,0.31838976]
[1736428157012,0.002,93422.0,93418.0,0.31838976]
[1736428157208,0.22503081,93428.0,93418.0,0.31838976]
[1736428158165,0.214076,93425.0,93418.0,0.10429976]
[1736428158373,0.22503081,93428.0,93418.0,0.10429976]
[1736428158587,0.214085,93421.0,93418.0,0.10429976]
[1736428158741,0.214085,93421.0,93418.0,0.10829976]
[1736428158952,0.214085,93421.0,93418.0,0.10429976]
[1736428159348,0.214085,93421.0,93418.0,0.10729976]
[1736428159548,0.214085,93421.0,93418.0,0.10429976]
[1736428159951,0.214085,93421.0,93418.0,0.10929976]
[1736428160600,0.214085,93421.0,93418.0,0.10729976]
[1736428160798,0.214085,93421.0,93418.0,0.10929976]
[1736428161868,0.42817,93421.0,93418.0,0.10929976]
[1736428162074,0.214085,93421.0,93418.0,0.10929976]
[1736428162744,0.22503081,93428.0,93418.0,0.10929976]
[1736428162745,0.214079,93424.0,93418.0,0.10629976]
[1736428163024,0.214079,93424.0,93418.0,0.10729976]
[1736428163276,0.214086,93421.0,93418.0,0.10729976]
[1736428163483,0.214086,93421.0,93418.0,0.10929976]
[1736428163910,0.214086,93421.0,93415.0,0.0076]
[1736428164138,0.364086,93420.0,93419.0,0.0076]
[1736428166201,0.367086,93420.0,93419.0,0.0076]
[1736428168131,0.2141,93414.0,93413.0,0.00032079]
[1736428168301,0.2141,93414.0,93413.0,0.00792079]
[1736428169310,0.2141,93414.0,93413.0,0.00032079]
[1736428169506,0.2141,93414.0,93413.0,0.00792079]
[1736428169732,0.2141,93414.0,93413.0,0.00892079]
[1736428170559,0.2141,93414.0,93413.0,0.00792079]
[1736428172013,0.2151,93414.0,93413.0,0.00792079]
[1736428178757,0.2151,93414.0,93413.0,0.00032079]
[1736428178963,0.3651,93414.0,93413.0,0.00032079]
[1736428180067,0.41879399,93414.0,93413.0,0.00032079]
[1736428182063,0.52079399,93414.0,93413.0,0.00032079]
[1736428182453,0.51979399,93414.0,93413.0,0.00032079]
[1736428182652,0.54487096,93414.0,93413.0,0.00032079]
[1736428182928,1.06708196,93414.0,93413.0,0.00132079]
[1736428183140,1.06508196,93414.0,93413.0,0.00132079]
[1736428183346,1.05908196,93414.0,93413.0,0.00032079]
[1736428183604,1.06908196,93414.0,93413.0,0.00132079]
[1736428184013,1.03600499,93414.0,93413.0,0.00032079]
[1736428184905,1.03400499,93414.0,93413.0,0.00032079]
[1736428185139,1.04200499,93414.0,93413.0,0.00132079]
[1736428185319,0.94400499,93414.0,93413.0,0.00132079]
[1736428186132,0.94200499,93414.0,93413.0,0.00132079]
[1736428186546,0.94400499,93414.0,93413.0,0.00132079]
[1736428186740,0.93600499,93414.0,93413.0,0.00032079]
[1736428187185,1.04200499,93414.0,93413.0,0.00132079]
[1736428187394,1.05359686,93414.0,93413.0,0.00132079]
[1736428187562,1.04759686,93414.0,93413.0,0.00032079]
[1736428188029,1.05359686,93414.0,93413.0,0.00132079]
[1736428188155,1.04559686,93414.0,93413.0,0.00032079]
[1736428188378,1.04759686,93414.0,93413.0,0.00032079]
[1736428188760,1.05659686,93414.0,93413.0,0.00132079]
[1736428188990,0.95659686,93414.0,93413.0,0.00132079]
[1736428189393,1.05659686,93414.0,93413.0,0.00132079]
[1736428189981,1.07059686,93414.0,93413.0,7.9e-07]
[1736428190189,0.273,93413.0,93412.0,9e-08]
[1736428190410,0.4887972,93413.0,93412.0,9e-08]
[1736428191646,0.49059952,93413.0,93412.0,9e-08]
[1736428191944,0.4977981,93413.0,93412.0,9e-08]
[1736428192926,0.80970934,93413.0,93412.0,9e-08]
[1736428193317,0.81370934,93413.0,93412.0,9e-08]
[1736428194608,0.81555397,93413.0,93412.0,9e-08]
[1736428197003,0.81717069,93413.0,93412.0,9e-08]
[1736428197317,0.364119,93406.0,93405.0,4.539e-05]
[1736428197670,0.37131801,93406.0,93405.0,4.539e-05]
[1736428198284,0.364119,93406.0,93405.0,4.539e-05]
[1736428198680,0.364119,93406.0,93405.0,0.07804539]
[1736428198883,0.364119,93406.0,93405.0,0.07904539]
[1736428198884,0.376119,93406.0,93405.0,0.07904539]
[1736428199023,0.367119,93406.0,93405.0,0.07804539]
[1736428199453,0.364119,93406.0,93405.0,0.07804539]
[1736428201257,0.16945673,93406.0,93405.0,0.07904539]
[1736428201665,0.01345673,93406.0,93405.0,0.18234515]
[1736428201889,0.214114,93409.0,93405.0,0.14984515]
[1736428202094,0.214116,93407.0,93406.0,0.10429976]
[1736428202695,0.214116,93407.0,93406.0,0.18229976]
[1736428203342,0.214116,93407.0,93406.0,0.18329976]
[1736428203752,0.214116,93407.0,93406.0,0.18429976]
[1736428203953,0.214107,93412.0,93407.0,0.0765]
[1736428204095,0.214107,93412.0,93408.0,0.08406]
[1736428204784,0.22761036,93412.0,93408.0,0.08406]
[1736428205059,0.01350536,93412.0,93408.0,0.08406]
[1736428205233,0.214107,93411.0,93408.0,0.08406]
[1736428205887,0.428215,93411.0,93408.0,0.08406]
[1736428206071,0.364112,93409.0,93408.0,0.0765]
[1736428206277,0.364112,93409.0,93405.0,4.539e-05]
[1736428206278,0.364115,93408.0,93405.0,4.539e-05]
[1736428206630,0.214115,93408.0,93405.0,4.539e-05]
[1736428207081,0.42823,93408.0,93405.0,4.539e-05]
[1736428207318,0.214119,93406.0,93405.0,4.539e-05]
[1736428208593,0.21722834,93406.0,93405.0,0.00104539]
[1736428208794,0.15,93405.0,93404.0,0.00439804]
[1736428210100,0.152,93405.0,93404.0,0.00439804]
[1736428210732,0.152,93405.0,93402.0,8.53e-05]
[1736428210934,0.214123,93404.0,93402.0,8.53e-05]
[1736428211142,0.10429976,93403.0,93402.0,8.53e-05]
[1736428211567,0.214123,93404.0,93402.0,8.53e-05]
[1736428212208,0.214123,93404.0,93402.0,0.0010853]
[1736428212429,0.209431,93404.0,93402.0,8.53e-05]
[1736428212830,0.006,93403.0,93402.0,8.53e-05]
[1736428213165,0.209431,93404.0,93402.0,8.53e-05]
[1736428214347,0.002,93403.0,93402.0,8.53e-05]
[1736428214721,0.209431,93404.0,93402.0,8.53e-05]
[1736428215106,0.218431,93404.0,93402.0,0.0010853]
[1736428215525,0.211431,93404.0,93402.0,8.53e-05]
[1736428215725,0.01401607,93403.0,93402.0,8.53e-05]
[1736428215978,0.02001607,93403.0,93402.0,0.0010853]
[1736428216205,0.01401607,93403.0,93402.0,8.53e-05]
[1736428216467,0.01401607,93403.0,93402.0,0.0010853]
[1736428216679,0.16401607,93403.0,93402.0,0.0010853]
[1736428217123,0.16601607,93403.0,93402.0,0.0010853]
[1736428217795,0.16601607,93403.0,93402.0,8.53e-05]
[1736428218184,0.17201607,93403.0,93402.0,0.0010853]
[1736428220827,0.158,93403.0,93402.0,0.0010853]
[1736428223811,0.36229976,93403.0,93402.0,3e-07]
[1736428224012,0.214174,93382.0,93381.0,0.0796852]
[1736428224215,0.214174,93382.0,93381.0,0.0872052]
[1736428225256,0.214174,93382.0,93381.0,0.0902052]
[1736428225452,0.2784247,93382.0,93381.0,0.0106052]
[1736428225609,0.4284247,93382.0,93381.0,0.0030852]
[1736428226049,0.364174,93382.0,93381.0,0.0030852]
[1736428226269,0.364174,93382.0,93381.0,0.0050852]
[1736428226489,0.364174,93382.0,93381.0,0.0852852]
[1736428226700,0.214174,93382.0,93381.0,0.0832852]
[1736428226914,0.214163,93387.0,93382.0,0.0481]
[1736428227161,0.214165,93386.0,93383.0,0.0802]
[1736428227373,0.214155,93390.0,93384.0,0.0802]
[1736428227625,0.214165,93386.0,93384.0,0.0802]
[1736428227972,0.214155,93390.0,93381.0,0.0020852]
[1736428227973,0.214174,93382.0,93381.0,0.0020852]
[1736428229418,0.214174,93382.0,93381.0,8.52e-05]
[1736428230680,0.217174,93382.0,93381.0,0.0763852]
[1736428230889,0.214174,93382.0,93381.0,0.0763852]
[1736428231348,0.217174,93382.0,93381.0,0.0763852]
[1736428231528,0.214174,93382.0,93381.0,0.0763852]
[1736428232468,0.22907669,93382.0,93381.0,0.0763852]
[1736428232696,0.22907669,93382.0,93381.0,0.1300052]
[1736428233116,0.01490269,93382.0,93381.0,0.1300052]
[1736428233348,0.01490269,93382.0,93381.0,0.23430496]
[1736428233552,0.01290269,93382.0,93381.0,0.23430496]
[1736428233963,0.002,93382.0,93381.0,0.22678496]
[1736428234183,0.214164,93387.0,93382.0,0.0772]
[1736428234387,0.214171,93384.0,93383.0,0.10429976]
[1736428234595,0.214171,93384.0,93382.0,0.0772]
[1736428234797,0.214164,93387.0,93382.0,0.18149976]
[1736428235010,0.214164,93387.0,93383.0,0.10429976]
[1736428235242,0.22695068,93387.0,93383.0,0.10429976]
[1736428235632,0.214165,93386.0,93383.0,0.10429976]
[1736428236058,0.05171821,93387.0,93382.0,0.0772]
[1736428236276,0.05171821,93387.0,93384.0,0.00752]
[1736428236277,0.364168,93385.0,93384.0,0.00752]
[1736428237862,0.368168,93385.0,93384.0,0.00752]
[1736428238277,0.364168,93385.0,93384.0,0.00752]
[1736428238493,0.367168,93385.0,93384.0,0.00752]
[1736428238905,0.367168,93385.0,93381.0,8.52e-05]
[1736428238906,0.36417,93384.0,93382.0,0.00752]
[1736428240353,0.57834,93384.0,93381.0,8.52e-05]
[1736428240500,0.364174,93382.0,93381.0,8.52e-05]
[1736428241505,0.49147376,93382.0,93381.0,8.52e-05]
[1736428241711,0.5951336,93382.0,93381.0,8.52e-05]
[1736428242144,0.5981336,93382.0,93381.0,8.52e-05]
[1736428242338,0.6981336,93382.0,93381.0,8.52e-05]
[1736428243349,0.6971336,93382.0,93381.0,8.52e-05]
[1736428243547,0.7051336,93382.0,93381.0,8.52e-05]
[1736428243842,1.01504484,93382.0,93381.0,8.52e-05]
[1736428243992,1.00704484,93382.0,93381.0,8.52e-05]
[1736428244197,1.01804484,93382.0,93381.0,8.52e-05]
[1736428244598,1.01004484,93382.0,93381.0,8.52e-05]
[1736428244803,0.68708524,93382.0,93381.0,8.52e-05]
[1736428245205,0.67908524,93382.0,93381.0,8.52e-05]
[1736428245603,0.52908524,93382.0,93381.0,8.52e-05]
[1736428246535,0.68508524,93382.0,93381.0,8.52e-05]
[1736428246728,0.53708524,93382.0,93381.0,8.52e-05]
[1736428246931,0.216174,93382.0,93381.0,0.0831852]
[1736428247267,0.220174,93382.0,93381.0,0.0831852]
[1736428247596,0.216174,93382.0,93381.0,0.0831852]
[1736428247811,0.220174,93382.0,93381.0,0.0831852]
[1736428248016,0.214174,93382.0,93381.0,0.0831852]
[1736428248279,0.27328707,93382.0,93381.0,0.0831852]
[1736428248579,0.42328707,93382.0,93381.0,0.0841852]
[1736428250020,0.42428707,93382.0,93381.0,0.0841852]
[1736428250232,0.42428707,93382.0,93381.0,0.0831852]
[1736428250687,0.42428707,93382.0,93381.0,0.0851852]
[1736428251087,0.42428707,93382.0,93381.0,0.0927052]
[1736428251358,0.42328707,93382.0,93381.0,0.0927052]
[1736428251577,0.364174,93382.0,93381.0,0.0907052]
[1736428251995,0.214174,93382.0,93381.0,0.0927052]
[1736428252203,0.22695068,93387.0,93382.0,0.0822]
[1736428252413,0.22695068,93387.0,93384.0,0.0792]
[1736428252414,0.44111468,93387.0,93384.0,0.0792]
[1736428252656,0.428328,93387.0,93384.0,0.0792]
[1736428252878,0.4925757,93387.0,93384.0,0.0792]
[1736428254096,0.4925757,93387.0,93384.0,0.0802]
[1736428254544,0.428328,93387.0,93384.0,0.0802]
[1736428254907,0.428328,93387.0,93384.0,0.0792]
[1736428255309,0.428328,93387.0,93385.0,0.00752]
[1736428256093,0.364167,93385.0,93384.0,0.0802]
[1736428256435,0.364167,93385.0,93384.0,0.00952]
[1736428256769,0.364167,93385.0,93384.0,0.00752]
[1736428256974,0.364167,93385.0,93381.0,8.52e-05]
[1736428256975,0.36417,93384.0,93381.0,8.52e-05]
[1736428257159,0.57834,93384.0,93381.0,8.52e-05]
[1736428257606,0.364174,93382.0,93381.0,8.52e-05]
[1736428258038,0.49561201,93382.0,93381.0,8.52e-05]
[1736428258215,0.59991177,93382.0,93381.0,8.52e-05]
[1736428260356,0.59991177,93382.0,93375.0,8.52e-05]
[1736428260357,0.15,93377.0,93375.0,4e-07]
[1736428260498,0.25429976,93376.0,93375.0,4e-07]
[1736428260699,0.25843801,93376.0,93375.0,4e-07]
[1736428260909,0.25843801,93376.0,93374.0,6e-07]
[1736428260910,2.408757,93375.0,93374.0,6e-07]
[1736428261111,0.60459976,93375.0,93374.0,6e-07]
[1736428261316,0.364203,93369.0,93368.0,1e-08]
[1736428261495,0.364231,93357.0,93355.0,0.00752]
[1736428261703,0.4006541,93357.0,93356.0,0.00015469]
[1736428263009,0.4048185,93357.0,93356.0,0.00015469]
[1736428263363,0.4098185,93357.0,93356.0,0.00015469]
[1736428263738,0.4048185,93357.0,93356.0,0.00015469]
[1736428263948,0.4098185,93357.0,93356.0,0.00015469]
[1736428264346,0.4108185,93357.0,93356.0,0.00015469]
[1736428264817,0.4233993,93357.0,93356.0,0.00015469]
[1736428265202,0.4223993,93357.0,93356.0,0.00015469]
[1736428265403,0.4182349,93357.0,93356.0,0.00015469]
[1736428265607,0.4223993,93357.0,93356.0,0.00015469]
[1736428266135,0.4233993,93357.0,93356.0,0.00015469]
[1736428266586,0.4183993,93357.0,93356.0,0.00015469]
[1736428266788,0.4223993,93357.0,93356.0,0.00015469]
[1736428267343,0.42267488,93357.0,93356.0,0.00015469]
[1736428267555,0.41867488,93357.0,93356.0,0.00015469]
[1736428267981,0.42267488,93357.0,93356.0,0.00015469]
[1736428268469,0.4192349,93357.0,93356.0,0.00015469]
[1736428268671,0.42367488,93357.0,93356.0,0.00015469]
[1736428269105,0.42267488,93357.0,93356.0,0.00015469]
[1736428269518,0.42367488,93357.0,93356.0,0.00015469]
[1736428269850,0.41767488,93357.0,93356.0,0.00015469]
[1736428270349,0.52197464,93357.0,93356.0,0.00015469]
[1736428271174,0.64997464,93357.0,93356.0,6.9e-07]
[1736428271380,0.69977464,93357.0,93356.0,6.9e-07]
[1736428271638,0.364261,93344.0,93343.0,8.52e-05]
[1736428271824,0.54179639,93344.0,93343.0,8.52e-05]
[1736428272030,0.54623637,93344.0,93343.0,8.52e-05]
[1736428272443,0.64733637,93344.0,93343.0,8.52e-05]
[1736428272651,0.64758067,93344.0,93343.0,8.52e-05]
[1736428273043,0.364279,93336.0,93328.0,0.00756]
[1736428273296,0.364279,93336.0,93323.0,0.00756]
[1736428273297,0.65943296,93336.0,93323.0,0.00756]
[1736428273683,0.214275,93338.0,93323.0,0.00756]
[1736428273684,0.214307,93324.0,93323.0,0.00756]
[1736428274114,0.214307,93324.0,93323.0,0.13176]
[1736428274903,0.214307,93324.0,93323.0,0.1322597]
[1736428275300,0.214296,93329.0,93323.0,0.0559597]
[1736428275536,0.214296,93329.0,93325.0,0.0765]
[1736428275745,0.42858,93332.0,93326.0,0.0458]
[1736428275946,0.44085854,93332.0,93327.0,0.0765]
[1736428276343,0.44085854,93332.0,93330.0,0.0458]
[1736428276344,0.01227854,93332.0,93330.0,0.0458]
[1736428276541,0.214275,93338.0,93332.0,0.0458]
[1736428276758,0.214267,93342.0,93332.0,0.0458]
[1736428276759,0.15,93341.0,93333.0,0.0765]
[1736428277004,0.009,93344.0,93333.0,0.0765]
[1736428277005,0.21427,93340.0,93333.0,0.0765]
[1736428277296,0.214269,93341.0,93337.0,0.0765]
[1736428277471,0.46195169,93341.0,93337.0,0.0765]
[1736428278465,0.214272,93339.0,93337.0,0.0765]
[1736428278672,0.21427,93340.0,93337.0,0.00756]
[1736428278879,0.42854,93340.0,93337.0,0.00756]
[1736428279080,0.42854,93340.0,93338.0,0.081]
[1736428279282,0.428531,93342.0,93339.0,0.049]
[1736428279915,0.21427,93340.0,93339.0,0.049]
[1736428282018,0.21427,93340.0,93339.0,0.05656]
[1736428282809,0.36427,93340.0,93339.0,0.002]
[1736428282978,0.36427,93340.0,93339.0,0.00956]
[1736428283193,0.36427,93340.0,93339.0,0.00756]
[1736428283396,0.4435494,93340.0,93339.0,0.00756]
[1736428283592,0.4435494,93340.0,93339.0,0.00956]
[1736428284022,0.4455494,93340.0,93339.0,0.00956]
[1736428284220,0.4455494,93340.0,93339.0,0.00756]
[1736428284710,0.36627,93340.0,93339.0,0.00756]
[1736428285321,0.36627,93340.0,93331.0,0.081]
[1736428285322,0.364288,93332.0,93331.0,0.081]
[1736428285677,0.364291,93331.0,93330.0,0.00756]
[1736428285875,0.15,93330.0,93323.0,0.0004997]
[1736428286084,0.12514221,93324.0,93323.0,0.0004997]
[1736428286259,0.12514221,93324.0,93323.0,0.0080597]
[1736428287073,0.214307,93324.0,93323.0,0.0080597]
[1736428288474,0.217307,93324.0,93323.0,0.0080597]
[1736428289983,0.214307,93324.0,93323.0,0.0080597]
[1736428290170,0.4465969,93324.0,93323.0,0.0080597]
[1736428290611,0.37820705,93324.0,93323.0,0.0080597]
[1736428290810,0.22820705,93324.0,93323.0,0.0080597]
[1736428291049,0.23220705,93324.0,93323.0,0.1383597]
[1736428291479,0.22820705,93324.0,93323.0,0.1383597]
[1736428291656,0.222307,93324.0,93323.0,0.1383597]
[1736428292735,0.220307,93324.0,93323.0,0.1383597]
[1736428294114,0.214307,93324.0,93323.0,0.1383597]
[1736428294475,0.23805353,93324.0,93323.0,0.0897597]
[1736428294718,0.24005353,93324.0,93323.0,0.0897597]
[1736428295104,0.26305353,93324.0,93323.0,0.0014997]
[1736428295308,0.26305353,93324.0,93323.0,0.0090597]
[1736428295514,0.41105353,93324.0,93323.0,0.0090597]
[1736428295717,0.41305353,93324.0,93323.0,0.0090597]
[1736428296425,0.41305353,93324.0,93323.0,0.0080597]
[1736428296562,0.41305353,93324.0,93323.0,0.0090597]
[1736428296968,0.41105353,93324.0,93323.0,0.0080597]
[1736428297399,0.41705353,93324.0,93323.0,0.0080597]
[1736428297599,0.41205353,93324.0,93323.0,0.0080597]
[1736428298005,0.41705353,93324.0,93323.0,0.0080597]
[1736428298496,0.41705353,93324.0,93323.0,0.0004997]
[1736428298926,0.393307,93324.0,93323.0,0.0004997]
[1736428299900,0.392307,93324.0,93323.0,0.0004997]
[1736428300095,0.393307,93324.0,93323.0,0.0004997]
[1736428300824,0.388307,93324.0,93323.0,0.0004997]
[1736428301027,0.365307,93324.0,93323.0,0.0004997]
[1736428301253,0.370307,93324.0,93323.0,0.0004997]
[1736428303163,0.42561677,93324.0,93323.0,0.0004997]
[1736428305089,0.393307,93324.0,93323.0,0.0004997]
[1736428307059,0.393307,93324.0,93323.0,0.0825997]
[1736428307690,0.214343,93309.0,93307.0,0.0004]
[1736428307893,0.214343,93309.0,93307.0,0.00054986]
[1736428307894,0.27729976,93308.0,93307.0,0.00054986]
[1736428308735,0.27797285,93308.0,93307.0,0.00054986]
[1736428308933,0.38311452,93308.0,93307.0,0.00054986]
[1736428309289,0.17671597,93308.0,93307.0,0.00054986]
[1736428310089,0.28101573,93308.0,93307.0,0.00054986]
[1736428310302,0.36281573,93308.0,93307.0,0.00054986]
[1736428310495,0.37891009,93308.0,93307.0,0.00254986]